[Event "December 19 Early 2023"]
[Site "https://www.chess.com"]
[Date "2023.12.19"]
[Round "4"]
[White "Kostiukov, Alexandr"]
[Black "Berezin, Viktor"]
[Result "1-0"]
[Board "160"]
[TimeControl "180+1"]
[WhiteFideId "14108100"]
[BlackFideId "14107872"]
[WhiteElo "2112"]
[BlackElo "2310"]
[WhiteTeam "UKR"]
[BlackTeam "UKR"]
[WhiteClock "0:00:19"]
[BlackClock "0:00:00"]

1. g3 {[%clk 0:02:48]}  Nf6 {[%clk 0:02:59]} 2. Bg2 {[%clk 0:02:48]}  g6 {[%clk 0:03:00]} 3. c4 {[%clk 0:02:47]}  Bg7 {[%clk 0:03:01]} 4. Nf3 {[%clk 0:02:48]}  O-O {[%clk 0:03:01]} 5. O-O {[%clk 0:02:49]}  d6 {[%clk 0:03:02]} 6. d4 {[%clk 0:02:49]}  Nc6 {[%clk 0:03:02]} 7. Nc3 {[%clk 0:02:50]}  a6 {[%clk 0:03:03]} 8. h3 {[%clk 0:02:48]}  Rb8 {[%clk 0:03:03]} 9. Bf4 {[%clk 0:02:43]}  b5 {[%clk 0:03:02]} 10. cxb5 {[%clk 0:02:41]}  axb5 {[%clk 0:03:03]} 11. Rc1 {[%clk 0:02:41]}  Bd7 {[%clk 0:03:02]} 12. d5 {[%clk 0:02:35]}  Na5 {[%clk 0:02:56]} 13. Nd4 {[%clk 0:02:31]}  Nh5 {[%clk 0:02:49]} 14. Be3 {[%clk 0:02:28]}  Nc4 {[%clk 0:02:49]} 15. g4 {[%clk 0:02:12]}  Nxe3 {[%clk 0:02:37]} 16. fxe3 {[%clk 0:02:11]}  Nf6 {[%clk 0:02:28]} 17. b4 {[%clk 0:01:56]}  e5 {[%clk 0:02:23]} 18. Nc6 {[%clk 0:01:44]}  Qe8 {[%clk 0:02:10]} 19. Nxb8 {[%clk 0:01:43]}  Qxb8 {[%clk 0:02:08]} 20. Qd3 {[%clk 0:01:36]}  Qb6 {[%clk 0:02:02]} 21. Kh1 {[%clk 0:01:34]}  h5 {[%clk 0:01:59]} 22. g5 {[%clk 0:01:33]}  Nh7 {[%clk 0:01:52]} 23. e4 {[%clk 0:01:23]}  h4 {[%clk 0:01:39]} 24. Qd2 {[%clk 0:01:15]}  f6 {[%clk 0:01:40]} 25. gxf6 {[%clk 0:01:15]}  Nxf6 {[%clk 0:01:41]} 26. Rf3 {[%clk 0:01:10]}  Nh5 {[%clk 0:01:37]} 27. Qg5 {[%clk 0:01:04]}  Rxf3 {[%clk 0:01:24]} 28. Bxf3 {[%clk 0:01:03]}  Qf2 {[%clk 0:01:22]} 29. Qg2 {[%clk 0:01:03]}  Ng3+ {[%clk 0:01:15]} 30. Kh2 {[%clk 0:01:03]}  Qe3 {[%clk 0:01:16]} 31. Rc2 {[%clk 0:00:59]}  Bh6 {[%clk 0:01:03]} 32. Nd1 {[%clk 0:00:58]}  Qa3 {[%clk 0:00:52]} 33. e3 {[%clk 0:00:48]}  Qd3 {[%clk 0:00:33]} 34. Rc3 {[%clk 0:00:45]}  Qb1 {[%clk 0:00:24]} 35. Rxc7 {[%clk 0:00:42]}  Be8 {[%clk 0:00:24]} 36. Bg4 {[%clk 0:00:40]}  Bf7 {[%clk 0:00:18]} 37. Qf3 {[%clk 0:00:36]}  Qxa2+ {[%clk 0:00:17]} 38. Kg1 {[%clk 0:00:36]}  Bf4 {[%clk 0:00:09]} 39. exf4 {[%clk 0:00:34]}  Qd2 {[%clk 0:00:06]} 40. Rxf7 {[%clk 0:00:30]}  Qe1+ {[%clk 0:00:05]} 41. Kg2 {[%clk 0:00:27]}  Kxf7 {[%clk 0:00:06]} 42. fxe5+ {[%clk 0:00:26]}  Ke8 {[%clk 0:00:05]} 43. exd6 {[%clk 0:00:24]}  Qh1+ {[%clk 0:00:05]} 44. Kf2 {[%clk 0:00:24]}  Qf1+ {[%clk 0:00:05]} 45. Ke3 {[%clk 0:00:23]}  Qg1+ {[%clk 0:00:05]} 46. Kf4 {[%clk 0:00:23]}  Qd4 {[%clk 0:00:04]} 47. d7+ {[%clk 0:00:21]}  Kd8 {[%clk 0:00:04]} 48. Qc3 {[%clk 0:00:20]}  Qg1 {[%clk 0:00:01]} 49. Qc8+ {[%clk 0:00:18]}  Ke7 {[%clk 0:00:00]} 50. d8=Q+ {[%clk 0:00:19]} 1-0

[Event "December 19 Early 2023"]
[Site "https://www.chess.com"]
[Date "2023.12.19"]
[Round "4"]
[White "Parfenov, Viktor N."]
[Black "Koridze, Lile"]
[Result "0-1"]
[Board "161"]
[TimeControl "180+1"]
[WhiteFideId "4165969"]
[BlackFideId "13612514"]
[WhiteElo "2093"]
[BlackElo "2061"]
[WhiteTeam "RUS"]
[BlackTeam "GEO"]
[WhiteClock "0:00:59"]
[BlackClock "0:00:38"]

1. d4 {[%clk 0:03:00]}  Nf6 {[%clk 0:03:00]} 2. c4 {[%clk 0:03:00]}  e6 {[%clk 0:03:00]} 3. Nc3 {[%clk 0:03:00]}  Bb4 {[%clk 0:03:00]} 4. e3 {[%clk 0:02:59]}  O-O {[%clk 0:03:00]} 5. Bd3 {[%clk 0:02:59]}  d5 {[%clk 0:03:00]} 6. cxd5 {[%clk 0:02:55]}  exd5 {[%clk 0:02:59]} 7. Ne2 {[%clk 0:02:55]}  c5 {[%clk 0:02:59]} 8. a3 {[%clk 0:02:53]}  Bxc3+ {[%clk 0:02:58]} 9. bxc3 {[%clk 0:02:53]}  Nc6 {[%clk 0:02:57]} 10. O-O {[%clk 0:02:52]}  Bg4 {[%clk 0:02:56]} 11. f3 {[%clk 0:02:52]}  Be6 {[%clk 0:02:54]} 12. Ng3 {[%clk 0:02:47]}  Re8 {[%clk 0:02:53]} 13. Ra2 {[%clk 0:02:44]}  Rc8 {[%clk 0:02:37]} 14. Re2 {[%clk 0:02:40]}  cxd4 {[%clk 0:02:35]} 15. cxd4 {[%clk 0:02:39]}  Na5 {[%clk 0:02:35]} 16. Bb1 {[%clk 0:02:27]}  Nc4 {[%clk 0:02:29]} 17. e4 {[%clk 0:02:26]}  dxe4 {[%clk 0:02:29]} 18. Nxe4 {[%clk 0:02:10]}  Nxe4 {[%clk 0:02:26]} 19. Bxe4 {[%clk 0:02:10]}  Bd5 {[%clk 0:02:22]} 20. Qd3 {[%clk 0:02:02]}  Bxe4 {[%clk 0:01:53]} 21. fxe4 {[%clk 0:01:59]}  Ne5 {[%clk 0:01:51]} 22. Qe3 {[%clk 0:01:53]}  Ng4 {[%clk 0:01:48]} 23. Qd3 {[%clk 0:01:50]}  Ne5 {[%clk 0:01:33]} 24. Qd1 {[%clk 0:01:49]}  Nc4 {[%clk 0:01:13]} 25. h3 {[%clk 0:01:46]}  Qb6 {[%clk 0:01:08]} 26. Kh1 {[%clk 0:01:43]}  Rcd8 {[%clk 0:01:08]} 27. d5 {[%clk 0:01:44]}  Qd6 {[%clk 0:00:59]} 28. a4 {[%clk 0:01:39]}  b6 {[%clk 0:00:55]} 29. Bf4 {[%clk 0:01:28]}  Qg6 {[%clk 0:00:53]} 30. Qd4 {[%clk 0:01:22]}  Nd6 {[%clk 0:00:50]} 31. Bxd6 {[%clk 0:01:16]}  Qxd6 {[%clk 0:00:49]} 32. Rc1 {[%clk 0:01:11]}  f6 {[%clk 0:00:49]} 33. Rc4 {[%clk 0:01:07]}  Qf4 {[%clk 0:00:45]} 34. Rf2 {[%clk 0:01:05]}  Qh4 {[%clk 0:00:45]} 35. Re2 {[%clk 0:01:04]}  Qf4 {[%clk 0:00:43]} 36. Rc6 {[%clk 0:01:00]}  Qf1+ {[%clk 0:00:39]} 37. Kh2 {[%clk 0:01:00]}  Qxe2 {[%clk 0:00:39]} 38. d6 {[%clk 0:00:59]}  Qxe4 {[%clk 0:00:39]} 39. Qxe4 {[%clk 0:00:59]}  Rxe4 {[%clk 0:00:38]} 0-1

[Event "December 19 Early 2023"]
[Site "https://www.chess.com"]
[Date "2023.12.19"]
[Round "4"]
[White "Buscar, Michael"]
[Black "Tabuenca Mendataurigoitia, Daniel"]
[Result "0-1"]
[Board "162"]
[TimeControl "180+1"]
[WhiteFideId "2603616"]
[BlackFideId "24563617"]
[WhiteElo "2010"]
[BlackElo "2130"]
[WhiteTeam "CAN"]
[BlackTeam "ESP"]
[WhiteClock "0:01:14"]
[BlackClock "0:01:48"]

1. d4 {[%clk 0:03:00]}  d6 {[%clk 0:02:52]} 2. c4 {[%clk 0:02:59]}  Nf6 {[%clk 0:02:49]} 3. Nf3 {[%clk 0:02:58]}  g6 {[%clk 0:02:45]} 4. g3 {[%clk 0:02:59]}  Bg7 {[%clk 0:02:43]} 5. Bg2 {[%clk 0:03:00]}  Bf5 {[%clk 0:02:43]} 6. O-O {[%clk 0:02:57]}  O-O {[%clk 0:02:42]} 7. b3 {[%clk 0:02:52]}  c5 {[%clk 0:02:36]} 8. dxc5 {[%clk 0:02:50]}  Ne4 {[%clk 0:02:33]} 9. Nd4 {[%clk 0:02:46]}  dxc5 {[%clk 0:02:32]} 10. Nxf5 {[%clk 0:02:45]}  gxf5 {[%clk 0:02:33]} 11. Qc2 {[%clk 0:02:21]}  Bxa1 {[%clk 0:02:27]} 12. Bh6 {[%clk 0:02:19]}  Bg7 {[%clk 0:02:23]} 13. Bxg7 {[%clk 0:02:19]}  Kxg7 {[%clk 0:02:24]} 14. Bxe4 {[%clk 0:02:18]}  fxe4 {[%clk 0:02:24]} 15. Qxe4 {[%clk 0:02:19]}  Nc6 {[%clk 0:02:22]} 16. Nc3 {[%clk 0:02:17]}  Qd4 {[%clk 0:02:19]} 17. Qf3 {[%clk 0:02:18]}  e6 {[%clk 0:02:12]} 18. Ne4 {[%clk 0:02:16]}  f5 {[%clk 0:02:07]} 19. Ng5 {[%clk 0:02:13]}  Qf6 {[%clk 0:02:04]} 20. h4 {[%clk 0:01:40]}  h6 {[%clk 0:02:02]} 21. Nh3 {[%clk 0:01:37]}  e5 {[%clk 0:01:59]} 22. Qe3 {[%clk 0:01:30]}  Nd4 {[%clk 0:01:55]} 23. Kh2 {[%clk 0:01:25]}  Rae8 {[%clk 0:01:50]} 24. Rg1 {[%clk 0:01:14]}  Kh7 {[%clk 0:01:48]} 0-1

[Event "December 19 Early 2023"]
[Site "https://www.chess.com"]
[Date "2023.12.19"]
[Round "4"]
[White "Nechitaylo, Nikita"]
[Black "Kanyamarala, Tarun"]
[Result "0-1"]
[Board "163"]
[TimeControl "180+1"]
[WhiteFideId "34138161"]
[BlackFideId "45004714"]
[WhiteElo "2049"]
[BlackElo "2318"]
[WhiteTeam "UKR"]
[BlackTeam "IRL"]
[WhiteClock "0:00:00"]
[BlackClock "0:00:13"]

1. d4 {[%clk 0:03:00]}  e6 {[%clk 0:02:57]} 2. c4 {[%clk 0:03:01]}  f5 {[%clk 0:02:57]} 3. g3 {[%clk 0:02:57]}  Nf6 {[%clk 0:02:57]} 4. Bg2 {[%clk 0:02:58]}  Be7 {[%clk 0:02:58]} 5. b3 {[%clk 0:02:58]}  O-O {[%clk 0:02:55]} 6. Nf3 {[%clk 0:02:57]}  Ne4 {[%clk 0:02:52]} 7. O-O {[%clk 0:02:55]}  Nc6 {[%clk 0:02:42]} 8. Ba3 {[%clk 0:02:54]}  Bxa3 {[%clk 0:02:35]} 9. Nxa3 {[%clk 0:02:55]}  Qe7 {[%clk 0:02:32]} 10. Nc2 {[%clk 0:02:44]}  d5 {[%clk 0:02:23]} 11. Ne3 {[%clk 0:02:40]}  Rd8 {[%clk 0:02:16]} 12. c5 {[%clk 0:02:08]}  b6 {[%clk 0:01:57]} 13. Rc1 {[%clk 0:02:04]}  bxc5 {[%clk 0:01:53]} 14. dxc5 {[%clk 0:02:04]}  a5 {[%clk 0:01:46]} 15. Nd4 {[%clk 0:01:51]}  Nxd4 {[%clk 0:01:34]} 16. Qxd4 {[%clk 0:01:52]}  e5 {[%clk 0:01:22]} 17. Nxd5 {[%clk 0:01:32]}  Qf7 {[%clk 0:01:20]} 18. Qc4 {[%clk 0:01:08]}  Rxd5 {[%clk 0:01:07]} 19. Bxe4 {[%clk 0:01:08]}  fxe4 {[%clk 0:01:06]} 20. Qxe4 {[%clk 0:01:09]}  Bh3 {[%clk 0:01:00]} 21. Rfd1 {[%clk 0:01:00]}  Rad8 {[%clk 0:00:56]} 22. Rxd5 {[%clk 0:00:53]}  Qxd5 {[%clk 0:00:57]} 23. Qxd5+ {[%clk 0:00:44]}  Rxd5 {[%clk 0:00:58]} 24. f3 {[%clk 0:00:41]}  Bd7 {[%clk 0:00:50]} 25. Rc4 {[%clk 0:00:32]}  Bb5 {[%clk 0:00:44]} 26. Rc2 {[%clk 0:00:33]}  a4 {[%clk 0:00:36]} 27. Kf2 {[%clk 0:00:30]}  axb3 {[%clk 0:00:35]} 28. axb3 {[%clk 0:00:30]}  c6 {[%clk 0:00:34]} 29. Ke3 {[%clk 0:00:20]}  Rd4 {[%clk 0:00:34]} 30. f4 {[%clk 0:00:18]}  Rb4 {[%clk 0:00:34]} 31. fxe5 {[%clk 0:00:16]}  Kf7 {[%clk 0:00:33]} 32. Rd2 {[%clk 0:00:09]}  Ke6 {[%clk 0:00:30]} 33. Rd8 {[%clk 0:00:06]}  Kxe5 {[%clk 0:00:30]} 34. Rd7 {[%clk 0:00:04]}  Rxb3+ {[%clk 0:00:28]} 35. Kf2 {[%clk 0:00:05]}  Kf6 {[%clk 0:00:26]} 36. e4 {[%clk 0:00:02]}  h6 {[%clk 0:00:24]} 37. Rd6+ {[%clk 0:00:01]}  Kf7 {[%clk 0:00:23]} 38. Rd7+ {[%clk 0:00:02]}  Kg6 {[%clk 0:00:23]} 39. e5 {[%clk 0:00:02]}  Rb2+ {[%clk 0:00:17]} 40. Ke3 {[%clk 0:00:03]}  Re2+ {[%clk 0:00:13]} 41. Kf4 {[%clk 0:00:03]}  Rxh2 {[%clk 0:00:13]} 42. e6 {[%clk 0:00:00]}  Re2 {[%clk 0:00:13]} 0-1

[Event "December 19 Early 2023"]
[Site "https://www.chess.com"]
[Date "2023.12.19"]
[Round "4"]
[White "Filippova, Margarita"]
[Black "noblerone"]
[Result "0-1"]
[Board "165"]
[TimeControl "180+1"]
[WhiteFideId "34199680"]
[WhiteElo "1916"]
[BlackElo "2505"]
[WhiteTeam "RUS"]
[WhiteClock "0:01:09"]
[BlackClock "0:00:05"]

1. e4 {[%clk 0:03:00]}  d5 {[%clk 0:02:47]} 2. exd5 {[%clk 0:02:58]}  Qxd5 {[%clk 0:02:48]} 3. Nc3 {[%clk 0:02:58]}  Qd8 {[%clk 0:02:47]} 4. d4 {[%clk 0:02:58]}  Nf6 {[%clk 0:02:47]} 5. Bc4 {[%clk 0:02:56]}  a6 {[%clk 0:02:39]} 6. Nf3 {[%clk 0:02:50]}  b5 {[%clk 0:02:35]} 7. Bd3 {[%clk 0:02:40]}  e6 {[%clk 0:02:06]} 8. O-O {[%clk 0:02:37]}  c5 {[%clk 0:02:03]} 9. dxc5 {[%clk 0:02:36]}  Bxc5 {[%clk 0:02:00]} 10. Ne4 {[%clk 0:02:35]}  Be7 {[%clk 0:01:20]} 11. Nxf6+ {[%clk 0:02:22]}  Bxf6 {[%clk 0:01:13]} 12. Be4 {[%clk 0:02:23]}  Ra7 {[%clk 0:01:04]} 13. a4 {[%clk 0:02:19]}  Rd7 {[%clk 0:00:56]} 14. Qe2 {[%clk 0:02:17]}  bxa4 {[%clk 0:00:47]} 15. c3 {[%clk 0:02:13]}  O-O {[%clk 0:00:46]} 16. Rxa4 {[%clk 0:02:12]}  Bb7 {[%clk 0:00:43]} 17. Bxb7 {[%clk 0:02:11]}  Rxb7 {[%clk 0:00:42]} 18. Rd1 {[%clk 0:02:11]}  Qc7 {[%clk 0:00:37]} 19. g3 {[%clk 0:02:08]}  h6 {[%clk 0:00:35]} 20. Bf4 {[%clk 0:02:07]}  Qc6 {[%clk 0:00:31]} 21. Nd4 {[%clk 0:02:03]}  Qxa4 {[%clk 0:00:30]} 22. Qg4 {[%clk 0:02:00]}  Rd7 {[%clk 0:00:22]} 23. Re1 {[%clk 0:01:57]}  Bxd4 {[%clk 0:00:19]} 24. Bxh6 {[%clk 0:01:57]}  Bf6 {[%clk 0:00:16]} 25. Qxa4 {[%clk 0:01:56]}  gxh6 {[%clk 0:00:16]} 26. Qg4+ {[%clk 0:01:54]}  Bg7 {[%clk 0:00:15]} 27. h4 {[%clk 0:01:54]}  Rfd8 {[%clk 0:00:15]} 28. Kg2 {[%clk 0:01:53]}  Nc6 {[%clk 0:00:16]} 29. Qc4 {[%clk 0:01:51]}  Ne7 {[%clk 0:00:13]} 30. Qxa6 {[%clk 0:01:51]}  Rd2 {[%clk 0:00:12]} 31. Re2 {[%clk 0:01:51]}  R2d6 {[%clk 0:00:12]} 32. Qc4 {[%clk 0:01:47]}  Nf5 {[%clk 0:00:11]} 33. h5 {[%clk 0:01:45]}  Rd1 {[%clk 0:00:10]} 34. g4 {[%clk 0:01:39]}  Nh4+ {[%clk 0:00:06]} 35. Kg3 {[%clk 0:01:39]}  Bf6 {[%clk 0:00:07]} 36. g5 {[%clk 0:01:26]}  Bxg5 {[%clk 0:00:05]} 37. f4 {[%clk 0:01:20]}  R8d3+ {[%clk 0:00:05]} 38. Kh2 {[%clk 0:01:17]}  Bf6 {[%clk 0:00:04]} 39. Qe4 {[%clk 0:01:11]}  Nf3+ {[%clk 0:00:04]} 40. Kg2 {[%clk 0:01:10]}  Rg1+ {[%clk 0:00:04]} 41. Kf2 {[%clk 0:01:09]}  Bh4# {[%clk 0:00:05]} 0-1

[Event "December 19 Early 2023"]
[Site "https://www.chess.com"]
[Date "2023.12.19"]
[Round "4"]
[White "Sadovsky, Artem"]
[Black "Ruge, Edison"]
[Result "1-0"]
[Board "166"]
[TimeControl "180+1"]
[WhiteFideId "4155840"]
[BlackFideId "4401000"]
[WhiteElo "2314"]
[BlackElo "2175"]
[WhiteTeam "FID"]
[BlackTeam "COL"]
[WhiteClock "0:00:05"]
[BlackClock "0:00:00"]

1. Nf3 {[%clk 0:03:00]}  d6 {[%clk 0:02:55]} 2. e4 {[%clk 0:02:52]}  Nf6 {[%clk 0:02:50]} 3. Nc3 {[%clk 0:02:51]}  g6 {[%clk 0:02:45]} 4. Bc4 {[%clk 0:02:50]}  Bg7 {[%clk 0:02:45]} 5. O-O {[%clk 0:02:50]}  O-O {[%clk 0:02:45]} 6. Bb3 {[%clk 0:02:49]}  c6 {[%clk 0:02:45]} 7. h3 {[%clk 0:02:49]}  e5 {[%clk 0:02:45]} 8. a4 {[%clk 0:02:48]}  Na6 {[%clk 0:02:43]} 9. d4 {[%clk 0:02:40]}  Qc7 {[%clk 0:02:43]} 10. Bc4 {[%clk 0:02:29]}  Nb8 {[%clk 0:02:37]} 11. a5 {[%clk 0:02:19]}  Be6 {[%clk 0:02:29]} 12. Bxe6 {[%clk 0:02:14]}  fxe6 {[%clk 0:02:28]} 13. dxe5 {[%clk 0:02:15]}  dxe5 {[%clk 0:02:26]} 14. Be3 {[%clk 0:02:11]}  Nbd7 {[%clk 0:02:17]} 15. Qe2 {[%clk 0:02:09]}  Nh5 {[%clk 0:02:12]} 16. Qc4 {[%clk 0:02:07]}  Rxf3 {[%clk 0:02:03]} 17. gxf3 {[%clk 0:01:57]}  Nf8 {[%clk 0:02:03]} 18. Ne2 {[%clk 0:01:45]}  Qf7 {[%clk 0:02:03]} 19. Kg2 {[%clk 0:01:45]}  a6 {[%clk 0:01:59]} 20. Rad1 {[%clk 0:01:36]}  Re8 {[%clk 0:01:57]} 21. b4 {[%clk 0:01:36]}  h6 {[%clk 0:01:49]} 22. Rd3 {[%clk 0:01:14]}  g5 {[%clk 0:01:49]} 23. Ng3 {[%clk 0:00:54]}  Ng6 {[%clk 0:01:41]} 24. Nxh5 {[%clk 0:00:38]}  Nh4+ {[%clk 0:01:40]} 25. Kh2 {[%clk 0:00:21]}  Qxh5 {[%clk 0:01:31]} 26. Bc5 {[%clk 0:00:13]}  Nxf3+ {[%clk 0:01:30]} 27. Rxf3 {[%clk 0:00:10]}  Qxf3 {[%clk 0:01:28]} 28. Qd3 {[%clk 0:00:11]}  Qf4+ {[%clk 0:01:25]} 29. Kg2 {[%clk 0:00:09]}  g4 {[%clk 0:01:11]} 30. hxg4 {[%clk 0:00:05]}  Qxg4+ {[%clk 0:01:11]} 31. Qg3 {[%clk 0:00:06]}  Qxe4+ {[%clk 0:01:10]} 32. Kh2 {[%clk 0:00:07]}  Qf4 {[%clk 0:01:06]} 33. Rd1 {[%clk 0:00:03]}  Qf7 {[%clk 0:00:46]} 34. c3 {[%clk 0:00:01]}  Kh7 {[%clk 0:00:44]} 35. Rg1 {[%clk 0:00:02]}  Qh5+ {[%clk 0:00:41]} 36. Kg2 {[%clk 0:00:02]}  e4 {[%clk 0:00:33]} 37. Rh1 {[%clk 0:00:01]}  Qg6 {[%clk 0:00:29]} 38. Be3 {[%clk 0:00:01]}  Qxg3+ {[%clk 0:00:27]} 39. Kxg3 {[%clk 0:00:02]}  Rf8 {[%clk 0:00:25]} 40. Kg2 {[%clk 0:00:02]}  Rf5 {[%clk 0:00:18]} 41. Rh4 {[%clk 0:00:02]}  Bxc3 {[%clk 0:00:15]} 42. Rxh6+ {[%clk 0:00:02]}  Kg7 {[%clk 0:00:15]} 43. Rxe6 {[%clk 0:00:03]}  Re5 {[%clk 0:00:13]} 44. Rd6 {[%clk 0:00:01]}  Kf7 {[%clk 0:00:12]} 45. Rd7+ {[%clk 0:00:01]}  Re7 {[%clk 0:00:12]} 46. Rd8 {[%clk 0:00:01]}  Bxb4 {[%clk 0:00:10]} 47. Bb6 {[%clk 0:00:02]}  c5 {[%clk 0:00:08]} 48. Kf1 {[%clk 0:00:02]}  e3 {[%clk 0:00:07]} 49. fxe3 {[%clk 0:00:02]}  Rxe3 {[%clk 0:00:07]} 50. Rd7+ {[%clk 0:00:03]}  Re7 {[%clk 0:00:08]} 51. Rd5 {[%clk 0:00:03]}  Ke6 {[%clk 0:00:08]} 52. Rh5 {[%clk 0:00:03]}  Rd7 {[%clk 0:00:08]} 53. Ke2 {[%clk 0:00:03]}  Rg7 {[%clk 0:00:07]} 54. Kd3 {[%clk 0:00:03]}  Rg3+ {[%clk 0:00:06]} 55. Ke4 {[%clk 0:00:04]}  Rg4+ {[%clk 0:00:06]} 56. Kf3 {[%clk 0:00:04]}  Rd4 {[%clk 0:00:05]} 57. Ke3 {[%clk 0:00:05]}  Rd7 {[%clk 0:00:03]} 58. Rh6+ {[%clk 0:00:04]}  Kd5 {[%clk 0:00:03]} 59. Kd3 {[%clk 0:00:04]}  c4+ {[%clk 0:00:02]} 60. Kc2 {[%clk 0:00:05]}  Rf7 {[%clk 0:00:01]} 61. Rh5+ {[%clk 0:00:05]}  Kc6 {[%clk 0:00:00]} 62. Rh6+ {[%clk 0:00:05]} 1-0

[Event "December 19 Early 2023"]
[Site "https://www.chess.com"]
[Date "2023.12.19"]
[Round "4"]
[White "Marinakis, Hristos"]
[Black "Hnydiuk, Aleksander"]
[Result "0-1"]
[Board "168"]
[TimeControl "180+1"]
[WhiteFideId "4294661"]
[BlackFideId "1109057"]
[WhiteElo "2304"]
[BlackElo "2374"]
[WhiteTeam "GRE"]
[BlackTeam "POL"]
[WhiteClock "0:00:00"]
[BlackClock "0:00:23"]

1. e4 {[%clk 0:02:58]}  e5 {[%clk 0:02:59]} 2. Nf3 {[%clk 0:02:57]}  Nc6 {[%clk 0:02:59]} 3. Bb5 {[%clk 0:02:51]}  a6 {[%clk 0:02:59]} 4. Ba4 {[%clk 0:02:50]}  Nf6 {[%clk 0:02:59]} 5. O-O {[%clk 0:02:46]}  Be7 {[%clk 0:02:58]} 6. Re1 {[%clk 0:02:46]}  b5 {[%clk 0:02:59]} 7. Bb3 {[%clk 0:02:46]}  O-O {[%clk 0:02:58]} 8. a4 {[%clk 0:02:45]}  Rb8 {[%clk 0:02:57]} 9. d3 {[%clk 0:02:42]}  d6 {[%clk 0:02:57]} 10. Nbd2 {[%clk 0:02:33]}  Be6 {[%clk 0:02:46]} 11. h3 {[%clk 0:02:29]}  Qe8 {[%clk 0:02:39]} 12. c3 {[%clk 0:02:14]}  Nd7 {[%clk 0:02:37]} 13. d4 {[%clk 0:01:55]}  Bxb3 {[%clk 0:02:25]} 14. Nxb3 {[%clk 0:01:50]}  f5 {[%clk 0:02:17]} 15. dxe5 {[%clk 0:01:32]}  Ncxe5 {[%clk 0:02:12]} 16. Nbd4 {[%clk 0:01:14]}  fxe4 {[%clk 0:02:07]} 17. Rxe4 {[%clk 0:01:12]}  Nc5 {[%clk 0:01:59]} 18. Rf4 {[%clk 0:00:31]}  Rxf4 {[%clk 0:01:51]} 19. Bxf4 {[%clk 0:00:31]}  Ned3 {[%clk 0:01:51]} 20. Qd2 {[%clk 0:00:24]}  bxa4 {[%clk 0:01:44]} 21. Bg5 {[%clk 0:00:16]}  Rxb2 {[%clk 0:01:40]} 22. Qe3 {[%clk 0:00:16]}  Kf7 {[%clk 0:01:29]} 23. Nf5 {[%clk 0:00:09]}  Bf6 {[%clk 0:01:05]} 24. Bxf6 {[%clk 0:00:03]}  Qxe3 {[%clk 0:01:03]} 25. fxe3 {[%clk 0:00:03]}  Kxf6 {[%clk 0:00:59]} 26. N5d4 {[%clk 0:00:03]}  g6 {[%clk 0:00:42]} 27. Nc6 {[%clk 0:00:03]}  Ke6 {[%clk 0:00:35]} 28. Nfd4+ {[%clk 0:00:03]}  Kd7 {[%clk 0:00:32]} 29. Rf1 {[%clk 0:00:01]}  Ne5 {[%clk 0:00:27]} 30. Rf8 {[%clk 0:00:01]}  Nxc6 {[%clk 0:00:24]} 31. Rf7+ {[%clk 0:00:00]}  Ne7 {[%clk 0:00:23]} 0-1

[Event "December 19 Early 2023"]
[Site "https://www.chess.com"]
[Date "2023.12.19"]
[Round "4"]
[White "Sarkar, Justin"]
[Black "Valle Luis, Leo"]
[Result "0-1"]
[Board "172"]
[TimeControl "180+1"]
[WhiteFideId "2010011"]
[BlackFideId "54577187"]
[WhiteElo "2138"]
[BlackElo "2143"]
[WhiteTeam "USA"]
[BlackTeam "ESP"]
[WhiteClock "0:00:00"]
[BlackClock "0:00:19"]

1. d4 {[%clk 0:02:31]}  Nf6 {[%clk 0:02:55]} 2. c4 {[%clk 0:02:29]}  e6 {[%clk 0:02:52]} 3. Nc3 {[%clk 0:02:28]}  Bb4 {[%clk 0:02:49]} 4. a3 {[%clk 0:02:28]}  Bxc3+ {[%clk 0:02:47]} 5. bxc3 {[%clk 0:02:28]}  O-O {[%clk 0:02:46]} 6. f3 {[%clk 0:02:26]}  d5 {[%clk 0:02:47]} 7. cxd5 {[%clk 0:02:20]}  Nxd5 {[%clk 0:02:48]} 8. e4 {[%clk 0:02:03]}  Nxc3 {[%clk 0:02:19]} 9. Qd2 {[%clk 0:01:21]}  Na4 {[%clk 0:02:17]} 10. Bc4 {[%clk 0:01:20]}  Nb6 {[%clk 0:02:17]} 11. Bb3 {[%clk 0:01:18]}  Nc6 {[%clk 0:02:17]} 12. Ne2 {[%clk 0:01:17]}  a5 {[%clk 0:02:14]} 13. h4 {[%clk 0:01:13]}  a4 {[%clk 0:02:15]} 14. Ba2 {[%clk 0:01:13]}  Na5 {[%clk 0:02:15]} 15. h5 {[%clk 0:01:11]}  h6 {[%clk 0:02:13]} 16. Rb1 {[%clk 0:01:03]}  Nac4 {[%clk 0:02:11]} 17. Qc3 {[%clk 0:00:52]}  Nd6 {[%clk 0:02:08]} 18. g4 {[%clk 0:00:48]}  f6 {[%clk 0:01:54]} 19. Nf4 {[%clk 0:00:45]}  Re8 {[%clk 0:01:51]} 20. e5 {[%clk 0:00:31]}  Nf7 {[%clk 0:01:31]} 21. Kf2 {[%clk 0:00:24]}  Nd5 {[%clk 0:01:25]} 22. Bxd5 {[%clk 0:00:10]}  exd5 {[%clk 0:01:25]} 23. Re1 {[%clk 0:00:08]}  c6 {[%clk 0:01:18]} 24. Bb2 {[%clk 0:00:06]}  Be6 {[%clk 0:00:54]} 25. Nxe6 {[%clk 0:00:01]}  Rxe6 {[%clk 0:00:55]} 26. f4 {[%clk 0:00:01]}  Re8 {[%clk 0:00:47]} 27. f5 {[%clk 0:00:01]}  Ng5 {[%clk 0:00:40]} 28. Qd3 {[%clk 0:00:02]}  Qc7 {[%clk 0:00:34]} 29. Kg2 {[%clk 0:00:02]}  Re7 {[%clk 0:00:32]} 30. Re2 {[%clk 0:00:01]}  c5 {[%clk 0:00:28]} 31. Rbe1 {[%clk 0:00:01]}  c4 {[%clk 0:00:28]} 32. Qc3 {[%clk 0:00:01]}  Rae8 {[%clk 0:00:27]} 33. Qb4 {[%clk 0:00:01]}  Ne4 {[%clk 0:00:22]} 34. Bc3 {[%clk 0:00:01]}  Qc6 {[%clk 0:00:19]} 35. Re3 {[%clk 0:00:00]}  fxe5 {[%clk 0:00:19]} 0-1